bitfinex-derivatives/quotes_BTCF0:USTF0_20241218
["timestamp","ask_amount","ask_price","bid_price","bid_amount"]
[1734503351441,0.0005,103920.0,103910.0,0.56079481]
[1734503351636,0.048108,103940.0,103910.0,0.93193787]
[1734503351947,0.11925106,103940.0,103930.0,0.3608]
[1734503353047,0.11925106,103940.0,103930.0,0.408911]
[1734503355042,0.048108,103940.0,103930.0,0.408911]
[1734503359152,0.048608,103940.0,103930.0,0.408911]
[1734503359350,0.048608,103940.0,103930.0,0.769711]
[1734503359747,0.048608,103940.0,103930.0,0.820311]
[1734503359948,0.0005,103940.0,103930.0,0.820311]
[1734503360143,0.048607,103940.0,103930.0,0.510211]
[1734503360443,0.11975006,103940.0,103930.0,0.408911]
[1734503360747,0.16985006,103940.0,103930.0,0.408911]
[1734503361550,0.098707,103940.0,103930.0,0.408911]
[1734503361755,0.0005,103940.0,103930.0,0.769711]
[1734503362053,0.07164306,103940.0,103930.0,0.822311]
[1734503363754,0.11975006,103940.0,103930.0,0.822311]
[1734503365157,0.048607,103940.0,103930.0,0.822311]
[1734503367159,0.04475632,103940.0,103930.0,0.822311]
[1734503368055,0.04525632,103940.0,103930.0,0.822311]
[1734503368250,0.0005,103940.0,103930.0,0.822311]
[1734503368752,0.0005,103940.0,103930.0,0.876411]
[1734503369161,0.04964882,103950.0,103940.0,0.048107]
[1734503369355,0.04964882,103950.0,103940.0,0.408907]
[1734503369555,0.12079188,103950.0,103940.0,0.408907]
[1734503369755,0.04964882,103950.0,103940.0,0.408907]
[1734503369958,0.12079188,103950.0,103940.0,0.3608]
[1734503370165,0.12129188,103950.0,103930.0,0.515609]
[1734503370458,0.048107,103940.0,103930.0,0.515609]
[1734503371053,0.07268888,103950.0,103930.0,0.515609]
[1734503371266,0.12079288,103950.0,103940.0,0.3608]
[1734503372061,0.12129288,103950.0,103940.0,0.3608]
[1734503372367,0.2075318,103950.0,103940.0,0.3608]
[1734503373164,0.2070318,103950.0,103940.0,0.3608]
[1734503373665,0.20318112,103950.0,103940.0,0.3608]
[1734503374167,0.20368112,103950.0,103940.0,0.3608]
[1734503374561,0.20375462,103950.0,103940.0,0.3608]
[1734503376668,0.3187385,103950.0,103940.0,0.3608]
[1734503377261,0.23249958,103950.0,103940.0,0.3608]
[1734503378367,0.16366138,103950.0,103940.0,0.3608]
[1734503378559,0.23480444,103950.0,103940.0,0.3608]
[1734503379767,0.16366138,103950.0,103940.0,0.3608]
[1734503379969,0.16366138,103950.0,103940.0,0.408907]
[1734503380265,0.16316138,103950.0,103940.0,0.408907]
[1734503381461,0.11505738,103950.0,103940.0,0.408907]
[1734503381766,0.20158239,103950.0,103940.0,0.50622016]
[1734503381956,0.20158239,103950.0,103940.0,0.408907]
[1734503382161,0.24968439,103950.0,103940.0,0.408907]
[1734503382363,0.13470051,103950.0,103940.0,0.50622016]
[1734503382872,0.20584357,103950.0,103940.0,0.50622016]
[1734503384164,0.20584357,103950.0,103940.0,0.45811316]
[1734503384366,0.20584357,103950.0,103940.0,0.09731316]
[1734503384564,0.32082745,103950.0,103940.0,0.45811316]
[1734503384965,0.32082745,103950.0,103940.0,0.3608]
[1734503385872,0.24968439,103950.0,103940.0,0.3608]
[1734503386266,0.13470051,103950.0,103940.0,0.3608]
[1734503387064,0.13470051,103950.0,103940.0,0.408907]
[1734503387970,0.24968439,103950.0,103940.0,0.408907]
[1734503388166,0.13470051,103950.0,103940.0,0.408907]
[1734503390465,0.20584357,103950.0,103930.0,0.66592016]
[1734503390666,0.13463201,103940.0,103930.0,0.66592016]
[1734503390866,0.048107,103940.0,103930.0,0.61182016]
[1734503391074,0.11925006,103940.0,103930.0,0.61182016]
[1734503391272,0.048107,103940.0,103930.0,0.61182016]
[1734503392177,0.11925006,103940.0,103930.0,0.61182016]
[1734503392474,0.20577507,103940.0,103930.0,0.4134]
[1734503392673,0.42465895,103940.0,103930.0,0.3608]
[1734503394073,0.42465895,103940.0,103920.0,0.408913]
[1734503394267,0.048111,103930.0,103920.0,0.408913]
[1734503395075,0.04426032,103930.0,103920.0,0.409413]
[1734503396273,0.04426032,103930.0,103920.0,0.408913]
[1734503396773,0.04426032,103930.0,103920.0,0.3608]
[1734503396974,0.11540338,103930.0,103920.0,0.3608]
[1734503397172,0.20192839,103930.0,103920.0,0.3613]
[1734503397372,0.20192839,103930.0,103920.0,0.45861316]
[1734503397972,0.20192839,103930.0,103920.0,0.09781316]
[1734503398174,0.27307145,103930.0,103920.0,0.09731316]
[1734503398483,0.048116,103920.0,103910.0,0.42623679]
[1734503398674,0.73792713,103920.0,103910.0,0.05536198]
[1734503399172,0.66678407,103920.0,103910.0,0.05536198]
[1734503399369,0.04812,103910.0,103900.0,0.41616198]
[1734503399574,0.04812,103910.0,103900.0,0.41627425]
[1734503399876,0.11926306,103910.0,103900.0,0.41627425]
[1734503400175,0.04812,103910.0,103900.0,0.36091227]
[1734503400973,0.13464201,103920.0,103900.0,0.48017833]
[1734503401176,0.13464201,103920.0,103900.0,0.53437833]
[1734503401374,0.048117,103920.0,103910.0,0.1082]
[1734503401979,0.04426632,103920.0,103910.0,0.1082]
[1734503402182,0.04426632,103920.0,103910.0,0.469]
[1734503404185,0.04426632,103920.0,103910.0,0.4695]
[1734503404985,0.04426632,103920.0,103910.0,0.51762]
[1734503405288,0.04426632,103920.0,103910.0,0.4695]
[1734503405480,0.11540938,103920.0,103910.0,0.4695]
[1734503405676,0.11540938,103920.0,103910.0,0.0005]
[1734503405881,0.30065244,103920.0,103910.0,0.0005]
[1734503406284,0.66145244,103920.0,103910.0,0.0005]
[1734503407891,0.74797745,103920.0,103910.0,0.0005]
[1734503408374,0.66145244,103920.0,103910.0,0.0005]
[1734503408579,0.59030938,103920.0,103910.0,0.0005]
[1734503408780,0.04812,103910.0,103900.0,0.36091227]
[1734503408979,0.11926306,103910.0,103900.0,0.36091227]
[1734503411183,0.48006306,103910.0,103900.0,0.00011227]
[1734503411686,0.53776306,103910.0,103900.0,0.00011227]
[1734503412087,0.17696306,103910.0,103900.0,0.00011227]
[1734503413192,0.53776306,103910.0,103900.0,0.00011227]
[1734503414085,0.53776306,103910.0,103880.0,0.4204438]
[1734503414086,0.04813,103890.0,103880.0,0.3622438]
[1734503414290,0.048134,103880.0,103870.0,0.3608]
[1734503414494,0.23057706,103880.0,103870.0,0.3608]
[1734503414881,0.23057706,103880.0,103860.0,0.3608]
[1734503415086,0.04825768,103870.0,103860.0,0.3608]
[1734503415382,0.04825768,103870.0,103860.0,0.36091881]
[1734503419396,0.11940074,103870.0,103860.0,0.36091881]
[1734503420091,0.48020074,103870.0,103860.0,0.00061881]
[1734503420286,0.53810074,103870.0,103860.0,0.00061881]
[1734503424286,0.53425006,103870.0,103860.0,0.00061881]
[1734503424893,0.62077507,103870.0,103860.0,0.00061881]
[1734503426796,0.048144,103860.0,103840.0,0.3608]
[1734503426997,0.11929106,103850.0,103840.0,0.3608]
[1734503427489,0.048153,103840.0,103830.0,0.473]
[1734503427800,0.11929606,103840.0,103830.0,0.47310463]
[1734503428098,0.048153,103840.0,103830.0,0.11230463]
[1734503428300,0.048153,103840.0,103830.0,0.47310463]
[1734503428701,0.049153,103840.0,103830.0,0.47510463]
[1734503430298,0.04430232,103840.0,103830.0,0.47310463]
[1734503431393,0.04430232,103840.0,103830.0,0.52126263]
[1734503432005,0.04430232,103840.0,103830.0,0.47310463]
[1734503435199,0.04430232,103840.0,103830.0,0.47360463]
[1734503435400,0.04430232,103840.0,103830.0,0.52176263]
[1734503435603,0.04430232,103840.0,103830.0,0.59290569]
[1734503436506,0.04430232,103840.0,103830.0,0.89290569]
[1734503437798,0.04430232,103840.0,103830.0,0.52176263]
[1734503439199,0.04430232,103840.0,103830.0,0.47360463]
[1734503440497,0.04430232,103840.0,103830.0,0.52176263]
[1734503440696,0.04430232,103840.0,103830.0,0.59290569]
[1734503441403,0.11544538,103840.0,103830.0,0.47360463]
[1734503442008,0.11544538,103840.0,103830.0,0.11280463]
[1734503442304,0.20197039,103840.0,103830.0,0.83440463]
[1734503442908,0.20197039,103840.0,103830.0,0.47360463]
[1734503443106,0.31695427,103840.0,103830.0,0.47360463]
[1734503443307,0.31695427,103840.0,103830.0,0.41710463]
[1734503443308,0.31678223,103840.0,103830.0,0.41710463]
[1734503443511,0.31678223,103840.0,103830.0,0.36140463]
[1734503443512,0.37128223,103840.0,103830.0,0.36140463]
[1734503444407,0.28492926,103840.0,103830.0,0.36140463]
[1734503444608,0.30017125,103840.0,103830.0,0.36140463]
[1734503445207,0.37131431,103840.0,103830.0,0.36140463]
[1734503445508,0.37132658,103840.0,103830.0,0.36140463]
[1734503445705,0.28492926,103840.0,103830.0,0.36140463]
[1734503446305,0.42866102,103840.0,103830.0,0.36140463]
[1734503446500,0.31367714,103840.0,103830.0,0.36140463]
[1734503446714,0.67447714,103840.0,103830.0,0.00060463]
[1734503447721,0.048159,103820.0,103810.0,0.3608]
[1734503447907,0.16339818,103820.0,103810.0,0.3608]
[1734503448209,0.22057818,103820.0,103810.0,0.3608]
[1734503448413,0.29172124,103820.0,103810.0,0.3608]
[1734503448613,0.29172124,103820.0,103810.0,0.36091161]
[1734503449012,0.29172124,103820.0,103810.0,0.00011161]
[1734503449521,0.37812599,103820.0,103810.0,0.00011161]
[1734503449708,0.29172124,103820.0,103810.0,0.00011161]
[1734503450418,0.37809965,103820.0,103810.0,0.00011161]
[1734503451009,0.29172124,103820.0,103810.0,0.00011161]
[1734503451913,0.37807368,103820.0,103810.0,0.00011161]
[1734503452221,0.28787056,103820.0,103810.0,0.00011161]
[1734503452413,0.37420218,103820.0,103810.0,0.00011161]
[1734503454124,0.28787056,103820.0,103810.0,0.00011161]
[1734503454314,0.30302594,103820.0,103810.0,0.00011161]
[1734503454514,0.18778676,103820.0,103810.0,0.00011161]
[1734503454819,0.25892982,103820.0,103810.0,0.00011161]
[1734503455017,0.18778676,103820.0,103810.0,0.00011161]
[1734503455226,0.18778676,103820.0,103810.0,0.00061161]
[1734503456209,0.18778676,103820.0,103810.0,0.00011161]
[1734503456923,0.25892982,103820.0,103810.0,0.00011161]
[1734503457423,0.25892982,103820.0,103810.0,0.00061161]
[1734503457623,0.18778676,103820.0,103810.0,0.00061161]
[1734503458228,0.25892982,103820.0,103810.0,0.00011161]
[1734503458719,0.25507914,103820.0,103810.0,0.00011161]
[1734503459321,0.25507914,103820.0,103810.0,0.00061161]
[1734503460128,0.25507914,103820.0,103810.0,0.36141161]
[1734503460318,0.25507914,103820.0,103810.0,0.36091161]
[1734503460518,0.18393608,103820.0,103810.0,0.36091161]
[1734503460718,0.09763764,103820.0,103810.0,0.36091161]
[1734503461314,0.09763764,103820.0,103810.0,0.36141161]
[1734503461517,0.04053764,103820.0,103810.0,0.48071767]
[1734503461732,0.04053764,103820.0,103810.0,0.59631767]
[1734503461927,0.04053764,103820.0,103810.0,0.47701161]
[1734503462121,0.1116807,103820.0,103810.0,0.00061161]
[1734503462321,0.1116807,103820.0,103810.0,0.00011161]
[1734503462322,0.25237914,103820.0,103810.0,0.00011161]
[1734503462718,0.61317914,103820.0,103810.0,0.00011161]
[1734503463132,0.25237914,103820.0,103810.0,0.00011161]
[1734503463428,0.25237914,103820.0,103810.0,0.00061161]
[1734503464330,0.25237914,103820.0,103810.0,0.00011161]
[1734503464929,0.61317914,103820.0,103810.0,0.00011161]
[1734503465434,0.61317914,103820.0,103810.0,0.00061161]
[1734503466826,0.5268807,103820.0,103810.0,0.00061161]
[1734503467028,0.61317914,103820.0,103810.0,0.00061161]
[1734503468333,0.61317914,103820.0,103810.0,0.00011161]
[1734503468636,0.048163,103810.0,103800.0,0.1]
[1734503468821,0.17460606,103810.0,103800.0,0.1]
[1734503469025,0.53548606,103810.0,103800.0,0.1]
[1734503469234,0.53548606,103810.0,103800.0,0.1005]
[1734503469723,0.58897503,103810.0,103800.0,0.10061071]
[1734503469928,0.58897503,103810.0,103800.0,0.10261071]
[1734503470131,0.67527347,103810.0,103800.0,0.10461071]
[1734503470327,0.58897503,103810.0,103800.0,0.10411071]
[1734503471127,0.67527347,103810.0,103800.0,0.10411071]
[1734503471327,0.67527347,103810.0,103800.0,0.10461071]
[1734503472336,0.67527347,103810.0,103800.0,0.10411071]
[1734503473231,0.67527347,103810.0,103800.0,0.10461071]
[1734503474330,0.67527347,103810.0,103800.0,0.10411071]
[1734503475234,0.67527347,103810.0,103800.0,0.10461071]
[1734503476326,0.67527347,103810.0,103800.0,0.10411071]
[1734503476927,0.62187347,103810.0,103800.0,0.10411071]
[1734503477339,0.62187347,103810.0,103800.0,0.10461071]
[1734503479346,0.62187347,103810.0,103800.0,0.10411071]
[1734503481636,0.55073041,103810.0,103800.0,0.10411071]
[1734503481839,0.62187347,103810.0,103800.0,0.10411071]
[1734503482642,0.61802279,103810.0,103800.0,0.10411071]
[1734503483642,0.25722279,103810.0,103800.0,0.10411071]
[1734503484040,0.17092435,103810.0,103800.0,0.10411071]
[1734503484938,0.61802279,103810.0,103800.0,0.10411071]
[1734503485137,0.61802279,103810.0,103800.0,0.07497365]
[1734503485345,0.67362279,103810.0,103800.0,0.07497365]
[1734503485539,0.78886197,103810.0,103800.0,0.07497365]
[1734503486343,0.78886197,103810.0,103800.0,0.07297365]
[1734503486547,0.78886197,103810.0,103800.0,0.03469784]
[1734503486844,0.78886197,103810.0,103800.0,0.03269784]
[1734503487237,0.78886197,103810.0,103800.0,0.01331071]
[1734503487441,0.048168,103800.0,103790.0,0.3608]
[1734503487735,0.17416038,103800.0,103790.0,0.3608]
[1734503487931,0.17416038,103800.0,103790.0,0.41616198]
[1734503488342,0.17424038,103800.0,103790.0,0.36139459]
[1734503489239,0.17424038,103800.0,103790.0,0.36089459]
[1734503489447,0.17424038,103800.0,103790.0,0.41625657]
[1734503490144,0.53504038,103800.0,103790.0,0.05545657]
[1734503490351,0.53504038,103800.0,103790.0,0.00059459]
[1734503490537,0.17424038,103800.0,103790.0,0.00059459]
[1734503491344,0.17424038,103800.0,103790.0,9.459e-05]
[1734503491540,0.18939576,103800.0,103790.0,9.459e-05]
[1734503491754,0.26053882,103800.0,103790.0,9.459e-05]
[1734503492344,0.69248188,103800.0,103790.0,0.00059459]
[1734503492543,0.62133882,103800.0,103790.0,0.00059459]
[1734503492747,0.80772106,103800.0,103790.0,0.00059459]
[1734503492948,0.736578,103800.0,103790.0,0.00059459]
[1734503493444,0.736578,103800.0,103790.0,9.459e-05]
[1734503494047,0.80772106,103800.0,103790.0,9.459e-05]
[1734503494242,0.80772106,103800.0,103790.0,0.00059459]
[1734503496647,0.80787075,103800.0,103790.0,0.00059459]
[1734503496954,0.72142262,103800.0,103790.0,0.00059459]
[1734503497646,0.80785829,103800.0,103790.0,0.00059459]
[1734503497850,0.72142262,103800.0,103790.0,0.00059459]
[1734503498452,0.72142262,103800.0,103790.0,9.459e-05]
[1734503503557,0.74044864,103800.0,103790.0,9.459e-05]
[1734503504855,0.048177,103780.0,103760.0,0.0014455]
[1734503505059,0.048187,103760.0,103750.0,0.00078]
[1734503505256,0.048196,103740.0,103730.0,0.4729]
[1734503505457,0.11933906,103740.0,103730.0,0.4729]
[1734503505757,0.11950395,103740.0,103730.0,0.11219867]
[1734503506151,0.19064701,103740.0,103730.0,0.05419867]
[1734503506346,0.11950395,103740.0,103730.0,0.05419867]
[1734503506768,0.11950395,103740.0,103730.0,0.05619867]
[1734503507155,0.19064701,103740.0,103730.0,0.00209867]
[1734503507950,0.24714701,103740.0,103730.0,0.00209867]
[1734503508156,0.048201,103730.0,103720.0,0.0573]
[1734503508456,0.11942406,103730.0,103720.0,0.0573]
[1734503508969,0.048205,103720.0,103710.0,0.4149]
[1734503509151,0.11934806,103720.0,103710.0,0.41498347]
[1734503509359,0.11942806,103720.0,103710.0,0.41498347]
[1734503510461,0.048285,103720.0,103710.0,0.41498347]
[1734503510858,0.11942806,103720.0,103710.0,0.41498347]
[1734503511256,0.11942806,103720.0,103710.0,0.41698347]
[1734503511565,0.11557738,103720.0,103710.0,0.41698347]
[1734503514563,0.11557738,103720.0,103710.0,0.36288347]
[1734503515859,0.1117267,103720.0,103710.0,0.36288347]
[1734503516256,0.04058364,103720.0,103710.0,0.43402653]
[1734503516559,0.048285,103720.0,103710.0,0.71109347]
[1734503517265,0.048285,103720.0,103710.0,0.66288347]
[1734503517563,0.048285,103720.0,103710.0,0.36288347]
[1734503520358,0.11942806,103720.0,103710.0,0.36288347]
[1734503521461,0.16852806,103720.0,103710.0,0.00208347]
[1734503521661,0.58882806,103720.0,103710.0,0.00208347]
[1734503521866,0.04821,103710.0,103700.0,4.7e-07]
[1734503522168,0.55137612,103710.0,103700.0,4.7e-07]
[1734503522758,0.48023306,103710.0,103700.0,4.7e-07]
[1734503524664,0.55137612,103710.0,103700.0,4.7e-07]
[1734503525273,0.55237612,103710.0,103700.0,4.7e-07]
[1734503527470,0.63871284,103710.0,103700.0,4.7e-07]
[1734503527768,0.048219,103690.0,103680.0,9.383e-05]
[1734503528068,0.48024206,103690.0,103680.0,9.383e-05]
[1734503528271,1.30194206,103690.0,103680.0,9.383e-05]
[1734503528566,1.37308512,103690.0,103680.0,8.3e-07]
[1734503529570,1.37408512,103690.0,103680.0,8.3e-07]
[1734503530167,0.048229,103670.0,103660.0,0.00061]
[1734503530372,0.48017206,103670.0,103660.0,0.00061]
[1734503530581,0.52725206,103670.0,103660.0,0.00061]
[1734503534174,0.52725206,103670.0,103660.0,0.43255306]
[1734503534175,0.13464572,103670.0,103660.0,0.43255306]
[1734503534369,0.13464572,103670.0,103660.0,0.46251]
[1734503534370,0.048309,103670.0,103660.0,0.46251]
[1734503535181,0.048309,103670.0,103660.0,0.10171]
[1734503535475,0.048309,103670.0,103660.0,0.46251]
[1734503539276,0.04445832,103670.0,103660.0,0.46251]
[1734503540481,0.04445832,103670.0,103660.0,0.46301]
[1734503542483,0.06334789,103670.0,103660.0,0.46301]
[1734503543474,0.06334789,103670.0,103660.0,0.40981]
[1734503543680,0.13449095,103670.0,103660.0,0.40981]
[1734503543876,0.13064027,103670.0,103660.0,0.40981]
[1734503544078,0.21697699,103670.0,103660.0,0.40981]
[1734503544584,0.13064027,103670.0,103660.0,0.40981]
[1734503545087,0.21697699,103670.0,103660.0,0.40981]
[1734503545381,0.13064027,103670.0,103660.0,0.4092]
[1734503546189,0.14583393,103670.0,103660.0,0.4092]
[1734503546688,0.05949721,103670.0,103660.0,0.4092]
[1734503547791,0.04060764,103670.0,103660.0,0.48034306]
[1734503547988,0.04060764,103670.0,103660.0,0.4092]
[1734503548180,0.12694436,103670.0,103660.0,0.4092]
[1734503551680,0.24205999,103670.0,103660.0,0.4092]
[1734503551880,0.24205999,103670.0,103660.0,0.48034306]
[1734503552087,0.24967935,103680.0,103670.0,0.048229]
[1734503552288,0.08633672,103690.0,103680.0,0.048224]
[1734503552495,0.04822,103690.0,103680.0,0.48016706]
[1734503553094,0.04822,103690.0,103680.0,0.78016706]
[1734503553390,0.09778416,103700.0,103680.0,0.85130612]
[1734503553589,0.14599916,103700.0,103690.0,0.48016306]
[1734503553791,0.05966244,103700.0,103690.0,0.48016306]
[1734503554088,0.05966244,103700.0,103690.0,0.78016306]
[1734503554294,0.05966244,103700.0,103690.0,0.48016306]
[1734503555194,0.06066244,103700.0,103690.0,0.48016306]
[1734503555592,0.08644417,103710.0,103690.0,0.48016306]
[1734503555795,0.00010745,103710.0,103700.0,0.51194306]
[1734503556987,0.00010745,103710.0,103700.0,0.56026059]
[1734503557192,0.00010745,103710.0,103700.0,0.86026059]
[1734503557193,0.04831845,103710.0,103700.0,0.86026059]
[1734503557491,0.04931845,103710.0,103700.0,0.86026059]
[1734503557798,0.04931845,103710.0,103700.0,0.56026059]
[1734503557988,0.04931845,103710.0,103700.0,0.86026059]
[1734503558392,0.00110745,103710.0,103700.0,0.86026059]
[1734503558784,0.00110745,103710.0,103700.0,0.89366059]
[1734503559800,0.00010745,103710.0,103700.0,0.89366059]
[1734503560101,0.00010745,103710.0,103700.0,0.59366059]
[1734503560299,0.04831945,103710.0,103700.0,0.59366059]
[1734503562295,0.00010745,103710.0,103700.0,0.59366059]
[1734503562495,0.00010745,103710.0,103700.0,0.89366059]
[1734503566102,0.24574206,103740.0,103700.0,0.89366059]
[1734503566103,0.174598,103740.0,103700.0,0.89366059]
[1734503566294,0.174598,103740.0,103730.0,0.3608]
[1734503567102,0.17466852,103740.0,103730.0,0.3608]
[1734503567402,0.17081784,103740.0,103730.0,0.3608]
[1734503567791,0.67390396,103740.0,103710.0,0.3608]
[1734503567988,0.048205,103720.0,103710.0,0.3608]
[1734503568189,0.04821,103710.0,103700.0,0.52130598]
[1734503568394,0.04871,103710.0,103700.0,0.88210598]
[1734503568592,0.04879,103710.0,103700.0,0.88210598]
[1734503569102,0.04879,103710.0,103700.0,0.83389198]
[1734503569301,0.04879,103710.0,103700.0,0.88210598]
[1734503569499,0.04829,103710.0,103700.0,0.88210598]
[1734503571599,8e-05,103710.0,103700.0,0.89709512]
[1734503571799,0.04829,103710.0,103700.0,0.89709512]
[1734503572104,0.04829,103710.0,103700.0,0.91208269]
[1734503572303,0.08969,103710.0,103700.0,0.91208269]
[1734503572498,0.08969,103710.0,103700.0,0.77773806]
[1734503572702,0.08583932,103710.0,103700.0,0.77773806]
[1734503572905,0.08583932,103710.0,103700.0,0.84888112]
[1734503573090,0.08583932,103710.0,103700.0,0.89709512]
[1734503573293,0.04443932,103710.0,103700.0,0.9392658]
[1734503573611,0.04443932,103710.0,103700.0,0.89709512]
[1734503575099,0.089605,103720.0,103700.0,0.9392658]
[1734503575402,0.089605,103720.0,103710.0,0.3608]
[1734503581202,0.16074806,103720.0,103710.0,0.3608]
[1734503581406,0.16074806,103720.0,103710.0,0.40297068]
[1734503581707,0.089605,103720.0,103710.0,0.40297068]
[1734503582513,0.24683723,103720.0,103710.0,0.40297068]
[1734503582806,0.36162279,103720.0,103710.0,0.04217068]
[1734503583012,0.04821,103710.0,103700.0,0.40307729]
[1734503583212,0.24780965,103710.0,103700.0,0.36090253]
[1734503583407,0.79453827,103710.0,103690.0,0.70669892]
[1734503583614,0.11935706,103700.0,103690.0,0.70669892]
[1734503583814,0.20591365,103700.0,103690.0,0.3608]
[1734503584110,0.11935706,103700.0,103690.0,0.3608]
[1734503584512,0.048214,103700.0,103690.0,0.36138609]
[1734503585501,0.048214,103700.0,103690.0,0.36088609]
[1734503586104,0.086714,103700.0,103690.0,0.36088609]
[1734503586506,0.086714,103700.0,103690.0,0.36138609]
[1734503586701,0.124914,103700.0,103690.0,0.36138609]
[1734503587616,0.124914,103700.0,103690.0,0.36088609]
[1734503587808,0.19605706,103700.0,103690.0,0.36088609]
[1734503588609,0.19605706,103700.0,103690.0,0.36138609]
[1734503589016,0.17666659,103710.0,103690.0,0.43252915]
[1734503589207,0.0419,103710.0,103700.0,0.48015706]
[1734503589411,0.04821,103710.0,103700.0,0.3608]
[1734503590213,0.04821,103710.0,103700.0,0.409014]
[1734503590813,0.18002503,103720.0,103700.0,0.457225]
[1734503591014,0.10888197,103720.0,103710.0,0.3608]
[1734503592006,0.041,103720.0,103710.0,0.48015306]
[1734503592213,0.08824879,103730.0,103720.0,0.048205]
[1734503592407,0.08774879,103730.0,103720.0,0.3608]
[1734503593410,0.08824879,103730.0,103720.0,0.3608]
[1734503593612,0.15939185,103730.0,103720.0,0.3608]
[1734503594217,0.048205,103720.0,103710.0,0.402]
[1734503594609,0.048285,103720.0,103710.0,0.402]
[1734503595516,0.048285,103720.0,103710.0,0.45021]
[1734503595729,0.04443432,103720.0,103710.0,0.52135306]
[1734503597112,0.04443432,103720.0,103710.0,0.402]
[1734503599114,0.11557738,103720.0,103710.0,0.70660055]
[1734503599312,0.04443432,103720.0,103710.0,0.3608]
[1734503600121,0.04443432,103720.0,103710.0,0.48015306]
[1734503600312,0.04443432,103720.0,103710.0,0.56265306]
[1734503600715,0.04058364,103720.0,103710.0,0.56265306]
[1734503601052,0.04058364,103720.0,103710.0,0.9501641]
[1734503601236,0.04058364,103720.0,103710.0,0.90841862]
[1734503604450,0.04058364,103720.0,103710.0,0.83727556]
[1734503604654,0.1117267,103720.0,103710.0,0.74856556]
[1734503604949,0.08058364,103720.0,103710.0,0.74831104]
[1734503605158,0.08058364,103720.0,103710.0,0.70656556]
[1734503606663,0.1517267,103720.0,103710.0,0.74831104]
[1734503606848,0.1899267,103720.0,103710.0,0.38751104]
[1734503607045,0.1899267,103720.0,103700.0,0.74831104]
[1734503607046,0.048209,103710.0,103700.0,0.74831104]
[1734503607250,0.11935206,103710.0,103700.0,0.70656556]
[1734503607543,0.11943206,103710.0,103700.0,0.3608]
[1734503608045,0.048214,103700.0,103690.0,0.78889808]
[1734503608247,0.048214,103700.0,103690.0,0.78745165]
[1734503608448,0.048294,103700.0,103690.0,0.82969713]
[1734503609449,0.048294,103700.0,103690.0,0.82919713]
[1734503610049,0.048294,103700.0,103690.0,0.90034019]
[1734503610542,0.048294,103700.0,103690.0,0.90084019]
[1734503610846,0.048294,103700.0,103690.0,0.82969713]
[1734503611518,0.048294,103700.0,103690.0,0.82919713]
[1734503612528,0.048294,103700.0,103690.0,0.78795165]
[1734503612726,0.048294,103700.0,103690.0,0.82969713]
[1734503613530,0.048294,103700.0,103690.0,0.82919713]
[1734503614529,0.048294,103700.0,103690.0,0.82969713]
[1734503614725,0.048294,103700.0,103690.0,0.48393157]
[1734503614927,0.048294,103700.0,103690.0,0.82953481]
[1734503615116,0.048294,103700.0,103690.0,0.60329363]
[1734503615324,0.25740849,103720.0,103690.0,1.00525195]
[1734503615518,0.048209,103710.0,103700.0,0.70635832]
[1734503615828,0.048209,103710.0,103700.0,0.7481038]
[1734503616333,0.048209,103710.0,103700.0,0.70635832]
[1734503617224,0.048209,103710.0,103700.0,0.7481038]
[1734503618023,0.048209,103710.0,103700.0,0.70635832]
[1734503619019,0.048209,103710.0,103700.0,0.82571538]
[1734503619229,0.088206,103720.0,103710.0,0.048209]
[1734503619435,0.12465659,103730.0,103720.0,0.048202]
[1734503619436,0.048701,103730.0,103720.0,0.048202]
[1734503619634,0.048701,103730.0,103720.0,0.56039054]
[1734503619837,0.048701,103730.0,103720.0,0.51864506]
[1734503620439,0.048701,103730.0,103720.0,0.86416951]
[1734503620440,0.048201,103730.0,103720.0,0.86416951]
[1734503620936,0.048201,103730.0,103720.0,0.90591499]
[1734503621331,0.048201,103730.0,103720.0,0.56039054]
[1734503621525,0.0005,103730.0,103720.0,0.86039054]
[1734503621730,7.052e-05,103740.0,103730.0,0.0482]
[1734503621925,1e-08,103740.0,103730.0,0.96253838]
[1734503622324,1e-08,103740.0,103730.0,1.26253838]
[1734503622735,1e-08,103740.0,103730.0,1.72323765]
[1734503623041,1e-08,103740.0,103730.0,1.2207929]
[1734503623739,0.04434133,103750.0,103740.0,0.048195]
[1734503624039,0.04434133,103750.0,103740.0,0.52033806]
[1734503624635,0.04444157,103750.0,103740.0,0.52033806]
[1734503625737,0.04444157,103750.0,103740.0,0.449195]
[1734503626441,0.04444157,103750.0,103740.0,0.489195]
[1734503626641,0.04444157,103750.0,103740.0,0.56033806]
[1734503626642,0.00010024,103750.0,103740.0,0.56033806]
[1734503627033,0.04829124,103750.0,103740.0,0.56033806]
[1734503627947,0.04829124,103750.0,103740.0,0.56045343]
[1734503627948,0.00010024,103750.0,103740.0,0.56045343]
[1734503629533,0.00060024,103750.0,103740.0,0.56045343]
[1734503629939,0.04493856,103760.0,103750.0,0.04819]
[1734503630134,0.04493856,103760.0,103750.0,0.48013306]
[1734503630946,0.04502937,103760.0,103750.0,0.48013306]
[1734503631346,0.04502937,103760.0,103750.0,0.40899]
[1734503631941,0.04502937,103760.0,103750.0,0.48013306]
[1734503633748,0.04502937,103760.0,103750.0,0.40899]
[1734503638750,0.04502937,103760.0,103750.0,0.48013306]
[1734503641846,0.04502937,103760.0,103750.0,0.3608]
[1734503642049,0.08302937,103760.0,103750.0,0.3608]
[1734503642253,0.08302937,103760.0,103750.0,0.40899]
[1734503642546,0.04552937,103760.0,103750.0,0.40899]
[1734503642853,0.04552937,103760.0,103750.0,0.48013306]
[1734503643451,0.04502937,103760.0,103750.0,0.48013306]
[1734503644550,0.04552937,103760.0,103750.0,0.40899]
[1734503645851,0.04552937,103760.0,103750.0,0.48013306]
[1734503647560,0.04502937,103760.0,103750.0,0.48013306]
[1734503650241,0.11617243,103760.0,103750.0,0.3608]
[1734503650847,0.15497243,103760.0,103750.0,0.3608]
[1734503651052,0.08382937,103760.0,103750.0,0.3608]
[1734503651243,0.17035213,103760.0,103750.0,0.40899]
[1734503651443,0.17035213,103760.0,103750.0,0.48013306]
[1734503651757,0.04502937,103760.0,103750.0,0.48013306]
[1734503652152,0.04502937,103760.0,103750.0,0.40899]
[1734503652351,0.04502937,103760.0,103750.0,0.44849252]
[1734503652556,0.04502937,103760.0,103750.0,0.51963558]
[1734503652752,0.04502937,103760.0,103750.0,0.56123558]
[1734503653442,0.04502937,103760.0,103750.0,0.96398542]
[1734503653648,0.04502937,103760.0,103750.0,0.40899]
[1734503655059,0.04502937,103760.0,103750.0,0.40030252]
[1734503656049,0.04502937,103760.0,103750.0,0.44849252]
[1734503657959,0.04117869,103760.0,103750.0,0.44849252]
[1734503658158,0.04117869,103760.0,103750.0,0.40899]